[Event "Late-Titled-Tuesday-Blitz-October-03-2023"]
[Site "Chess.com"]
[Date "2023.10.03"]
[Round "4"]
[White "tantaan"]
[Black "simplerXiao"]
[Result "1-0"]
[WhiteElo "2388"]
[BlackElo "2495"]
[TimeControl "180+1"]
[EndTime "14:38:59 PDT"]
[Termination "tantaan won by resignation"]

1. d4 {[%clk 0:03:00.9]} 1... Nf6 {[%clk 0:02:58.5]} 2. c4 {[%clk 0:03:01.1]}
2... e6 {[%clk 0:02:58.4]} 3. Nc3 {[%clk 0:03:00.8]} 3... Bb4 {[%clk 0:02:56.8]}
4. f3 {[%clk 0:03:01.2]} 4... b6 {[%clk 0:02:55.2]} 5. a3 {[%clk 0:02:59.7]}
5... Bxc3+ {[%clk 0:02:54.9]} 6. bxc3 {[%clk 0:03:00.2]} 6... c5 {[%clk
0:02:54.6]} 7. e4 {[%clk 0:02:59.4]} 7... O-O {[%clk 0:02:53.3]} 8. Bd3 {[%clk
0:02:58.7]} 8... d5 {[%clk 0:02:52.4]} 9. cxd5 {[%clk 0:02:57.5]} 9... exd5
{[%clk 0:02:52.6]} 10. e5 {[%clk 0:02:58.1]} 10... Nfd7 {[%clk 0:02:51.1]} 11.
Ne2 {[%clk 0:02:58.2]} 11... Ba6 {[%clk 0:02:44]} 12. O-O {[%clk 0:02:57.5]}
12... Bxd3 {[%clk 0:02:43.8]} 13. Qxd3 {[%clk 0:02:57.3]} 13... c4 {[%clk
0:02:39]} 14. Qc2 {[%clk 0:02:54.8]} 14... f5 {[%clk 0:02:39.1]} 15. Nf4 {[%clk
0:02:50.8]} 15... b5 {[%clk 0:02:31.9]} 16. Ne6 {[%clk 0:02:41.5]} 16... Qe7
{[%clk 0:02:31.6]} 17. Nxf8 {[%clk 0:02:41.9]} 17... Nxf8 {[%clk 0:02:32.3]} 18.
Qxf5 {[%clk 0:02:41.4]} 18... Nc6 {[%clk 0:02:31.2]} 19. Bg5 {[%clk 0:02:40.7]}
19... Qe8 {[%clk 0:02:30.2]} 20. Rae1 {[%clk 0:02:37.9]} 20... Ne6 {[%clk
0:02:30.3]} 21. Qg4 {[%clk 0:02:34.3]} 21... Qg6 {[%clk 0:02:22.2]} 22. Bd2
{[%clk 0:02:23]} 22... Qxg4 {[%clk 0:01:55.4]} 23. fxg4 {[%clk 0:02:23.9]} 23...
a5 {[%clk 0:01:54.2]} 24. Rb1 {[%clk 0:02:17]} 24... b4 {[%clk 0:01:53.9]} 25.
axb4 {[%clk 0:02:15.5]} 25... axb4 {[%clk 0:01:53.9]} 26. cxb4 {[%clk
0:02:15.9]} 26... Ncxd4 {[%clk 0:01:53.3]} 27. Be3 {[%clk 0:02:00.6]} 27... Nb5
{[%clk 0:01:50.4]} 28. Ra1 {[%clk 0:01:53.8]} 28... Re8 {[%clk 0:01:43.6]} 29.
Ra5 {[%clk 0:01:47.5]} 29... d4 {[%clk 0:01:38.7]} 30. Rxb5 {[%clk 0:01:34.7]}
30... dxe3 {[%clk 0:01:38.5]} 31. Re1 {[%clk 0:01:34.6]} 31... Nd4 {[%clk
0:01:36.6]} 32. Rc5 {[%clk 0:01:20.9]} 32... Nc2 {[%clk 0:01:24.7]} 33. Re2
{[%clk 0:01:20.3]} 33... Rd8 {[%clk 0:01:19.3]} 34. g3 {[%clk 0:00:55.5]} 34...
Rd1+ {[%clk 0:01:10.5]} 35. Kg2 {[%clk 0:00:54.3]} 35... Rd2 {[%clk 0:01:00]}
36. Kf3 {[%clk 0:00:46.9]} 36... Nd4+ {[%clk 0:00:59.3]} 37. Kxe3 {[%clk
0:00:46.7]} 37... Rd3+ {[%clk 0:00:59.7]} 38. Kf2 {[%clk 0:00:42.3]} 38... Nxe2
{[%clk 0:00:48.9]} 39. Kxe2 {[%clk 0:00:43.2]} 39... Rc3 {[%clk 0:00:43.4]} 40.
e6 {[%clk 0:00:39]} 40... Kf8 {[%clk 0:00:43.1]} 41. Rc7 {[%clk 0:00:30.8]}
41... Rc2+ {[%clk 0:00:42.3]} 42. Ke3 {[%clk 0:00:27.3]} 42... c3 {[%clk
0:00:38]} 43. Kd3 {[%clk 0:00:20.6]} 43... Rxh2 {[%clk 0:00:37.1]} 44. Kxc3
{[%clk 0:00:20.8]} 44... Rg2 {[%clk 0:00:36.4]} 45. b5 {[%clk 0:00:19.5]} 45...
Rxg3+ {[%clk 0:00:36.8]} 46. Kc4 {[%clk 0:00:19.7]} 46... Rxg4+ {[%clk
0:00:37.3]} 47. Kc5 {[%clk 0:00:18.9]} 47... h5 {[%clk 0:00:35.9]} 48. b6 {[%clk
0:00:18.8]} 48... Rg1 {[%clk 0:00:36.1]} 49. b7 {[%clk 0:00:18.9]} 49... Rb1
{[%clk 0:00:35.1]} 50. Rc8+ {[%clk 0:00:18.8]} 50... Ke7 {[%clk 0:00:35.4]} 51.
b8=Q {[%clk 0:00:17.5]} 51... Rxb8 {[%clk 0:00:34.8]} 52. Rxb8 {[%clk
0:00:18.4]} 52... Kxe6 {[%clk 0:00:35.4]} 53. Kd4 {[%clk 0:00:18.3]} 53... Kf5
{[%clk 0:00:35.8]} 54. Ke3 {[%clk 0:00:18.8]} 54... Kg4 {[%clk 0:00:36.2]} 55.
Kf2 {[%clk 0:00:19.4]} 55... Kh3 {[%clk 0:00:36.6]} 56. Kg1 {[%clk 0:00:18.8]}
56... g5 {[%clk 0:00:36.4]} 57. Rb3+ {[%clk 0:00:18.5]} 57... Kh4 {[%clk
0:00:36.2]} 58. Kg2 {[%clk 0:00:18.5]} 58... g4 {[%clk 0:00:36.5]} 59. Rb4
{[%clk 0:00:18.7]} 59... Kg5 {[%clk 0:00:36.2]} 60. Ra4 {[%clk 0:00:18.2]} 60...
Kh4 {[%clk 0:00:35]} 61. Ra5 {[%clk 0:00:17.5]} 61... g3 {[%clk 0:00:33.7]} 62.
Ra4+ {[%clk 0:00:18.1]} 62... Kg5 {[%clk 0:00:34]} 63. Kxg3 {[%clk 0:00:18.5]}
63... Kg6 {[%clk 0:00:34.3]} 64. Kh4 {[%clk 0:00:18.3]} 64... Kf5 {[%clk
0:00:34.7]} 65. Ra5+ {[%clk 0:00:18.6]} 65... Kf4 {[%clk 0:00:34.8]} 66. Kxh5
{[%clk 0:00:19.5]} 1-0

[Event "Late-Titled-Tuesday-Blitz-October-03-2023"]
[Site "Chess.com"]
[Date "2023.10.03"]
[Round "4"]
[White "SergioMoralesG"]
[Black "chosenpr"]
[Result "1-0"]
[WhiteElo "2445"]
[BlackElo "2242"]
[TimeControl "180+1"]
[EndTime "14:39:04 PDT"]
[Termination "SergioMoralesG won on time"]

1. d4 {[%clk 0:03:00.9]} 1... Nf6 {[%clk 0:02:56.7]} 2. c4 {[%clk 0:03:01.3]}
2... e6 {[%clk 0:02:56.7]} 3. Nf3 {[%clk 0:03:01.9]} 3... Bb4+ {[%clk
0:02:56.9]} 4. Nbd2 {[%clk 0:03:00.8]} 4... O-O {[%clk 0:02:56.8]} 5. a3 {[%clk
0:02:59.9]} 5... Be7 {[%clk 0:02:57]} 6. e4 {[%clk 0:02:59.5]} 6... d6 {[%clk
0:02:57.7]} 7. Bd3 {[%clk 0:02:56.4]} 7... Nbd7 {[%clk 0:02:58]} 8. O-O {[%clk
0:02:55]} 8... e5 {[%clk 0:02:58.6]} 9. b4 {[%clk 0:02:45.8]} 9... a5 {[%clk
0:02:55.7]} 10. Bb2 {[%clk 0:02:44.9]} 10... exd4 {[%clk 0:02:51.1]} 11. Bxd4
{[%clk 0:02:38.2]} 11... Re8 {[%clk 0:02:47.3]} 12. Qc2 {[%clk 0:02:32]} 12...
Nf8 {[%clk 0:02:40.3]} 13. Rad1 {[%clk 0:02:24.4]} 13... Ng6 {[%clk 0:02:38.1]}
14. Rfe1 {[%clk 0:02:20]} 14... Bg4 {[%clk 0:02:32.2]} 15. h3 {[%clk 0:02:17.6]}
15... Bxf3 {[%clk 0:02:32.2]} 16. Nxf3 {[%clk 0:02:18.5]} 16... Nd7 {[%clk
0:02:22.7]} 17. Bf1 {[%clk 0:02:09]} 17... Nde5 {[%clk 0:02:22.3]} 18. Nh2
{[%clk 0:02:00.5]} 18... Qc8 {[%clk 0:02:11.1]} 19. g3 {[%clk 0:01:56]} 19...
axb4 {[%clk 0:02:00.9]} 20. axb4 {[%clk 0:01:55.4]} 20... Ra3 {[%clk 0:01:56.6]}
21. Re3 {[%clk 0:01:51.6]} 21... Rxe3 {[%clk 0:01:53.8]} 22. Bxe3 {[%clk
0:01:52.5]} 22... Nc6 {[%clk 0:01:35.8]} 23. b5 {[%clk 0:01:48]} 23... Nd8
{[%clk 0:01:34.1]} 24. f4 {[%clk 0:01:40.7]} 24... Bf8 {[%clk 0:01:27.3]} 25.
Nf3 {[%clk 0:01:38.5]} 25... f5 {[%clk 0:01:25.9]} 26. Bg2 {[%clk 0:01:04]}
26... Rxe4 {[%clk 0:01:20.3]} 27. Bf2 {[%clk 0:01:02.1]} 27... Re8 {[%clk
0:01:11]} 28. Nd4 {[%clk 0:00:57.7]} 28... Ne7 {[%clk 0:01:06]} 29. Re1 {[%clk
0:00:56.1]} 29... g6 {[%clk 0:01:05.9]} 30. Bd5+ {[%clk 0:00:45.9]} 30... Kh8
{[%clk 0:01:01.5]} 31. Be6 {[%clk 0:00:20.1]} 31... Qa8 {[%clk 0:00:47.1]} 32.
Bd7 {[%clk 0:00:19.5]} 32... Nf7 {[%clk 0:00:42.9]} 33. Bxe8 {[%clk 0:00:19.2]}
33... Qxe8 {[%clk 0:00:43.8]} 34. Ne6 {[%clk 0:00:19.6]} 34... Kg8 {[%clk
0:00:39]} 35. Nxc7 {[%clk 0:00:18.5]} 35... Qc8 {[%clk 0:00:32.5]} 36. Ne6
{[%clk 0:00:17.8]} 36... Bh6 {[%clk 0:00:32.6]} 37. Qc3 {[%clk 0:00:13.6]} 37...
d5 {[%clk 0:00:31.3]} 38. Rc1 {[%clk 0:00:10]} 38... Qxe6 {[%clk 0:00:30.2]} 39.
c5 {[%clk 0:00:09.8]} 39... Bg7 {[%clk 0:00:29]} 40. Bd4 {[%clk 0:00:07]} 40...
Bxd4+ {[%clk 0:00:22.7]} 41. Qxd4 {[%clk 0:00:07.9]} 41... Nd8 {[%clk
0:00:18.5]} 42. Kf2 {[%clk 0:00:06.4]} 42... Qe4 {[%clk 0:00:14.9]} 43. Qf6
{[%clk 0:00:06]} 43... d4 {[%clk 0:00:10.6]} 44. Re1 {[%clk 0:00:05.7]} 44...
Qc2+ {[%clk 0:00:10.7]} 45. Re2 {[%clk 0:00:06.1]} 45... d3 {[%clk 0:00:08.3]}
46. Rxc2 {[%clk 0:00:05.4]} 46... dxc2 {[%clk 0:00:09.2]} 47. Qc3 {[%clk
0:00:04.9]} 47... Ne6 {[%clk 0:00:06.1]} 48. Qxc2 {[%clk 0:00:04.3]} 48... Nd5
{[%clk 0:00:06.2]} 49. Qa2 {[%clk 0:00:04.5]} 49... Nec7 {[%clk 0:00:03.8]} 50.
b6 {[%clk 0:00:05]} 1-0

[Event "Late-Titled-Tuesday-Blitz-October-03-2023"]
[Site "Chess.com"]
[Date "2023.10.03"]
[Round "4"]
[White "RebecaJimnz"]
[Black "egnfanclub"]
[Result "1-0"]
[WhiteElo "2213"]
[BlackElo "2386"]
[TimeControl "180+1"]
[EndTime "14:39:05 PDT"]
[Termination "RebecaJimnz won by resignation"]

1. e4 {[%clk 0:02:54.1]} 1... e5 {[%clk 0:02:59.5]} 2. d4 {[%clk 0:02:52.7]}
2... exd4 {[%clk 0:02:59.3]} 3. Qxd4 {[%clk 0:02:53.5]} 3... Nc6 {[%clk
0:02:58.5]} 4. Qe3 {[%clk 0:02:53.6]} 4... g6 {[%clk 0:02:58.7]} 5. Nc3 {[%clk
0:02:53.9]} 5... Bg7 {[%clk 0:02:59.2]} 6. Bd2 {[%clk 0:02:54.5]} 6... Nf6
{[%clk 0:02:59.7]} 7. O-O-O {[%clk 0:02:54.8]} 7... O-O {[%clk 0:03:00.3]} 8. f3
{[%clk 0:02:50.4]} 8... Re8 {[%clk 0:03:00.6]} 9. Bc4 {[%clk 0:02:45.7]} 9...
Na5 {[%clk 0:02:51.6]} 10. Bd3 {[%clk 0:02:23]} 10... d5 {[%clk 0:02:43.6]} 11.
Nge2 {[%clk 0:02:22.4]} 11... Nc6 {[%clk 0:02:31.9]} 12. Nb5 {[%clk 0:01:50.6]}
12... dxe4 {[%clk 0:01:57.6]} 13. fxe4 {[%clk 0:01:45.9]} 13... Ng4 {[%clk
0:01:52]} 14. Qg3 {[%clk 0:01:29.1]} 14... Be5 {[%clk 0:01:47.2]} 15. Qe1 {[%clk
0:01:29.3]} 15... Qf6 {[%clk 0:01:35.6]} 16. Rf1 {[%clk 0:01:25.4]} 16... Bxb2+
{[%clk 0:01:12.4]} 17. Kb1 {[%clk 0:01:25.8]} 17... Qg7 {[%clk 0:01:12.6]} 18.
c3 {[%clk 0:01:14.4]} 18... a6 {[%clk 0:01:08.8]} 19. Nxc7 {[%clk 0:01:14.8]}
19... Be6 {[%clk 0:00:53.3]} 20. Nxe8 {[%clk 0:01:10.1]} 20... Rxe8 {[%clk
0:00:52.5]} 21. Kxb2 {[%clk 0:01:10.3]} 21... Nge5 {[%clk 0:00:50.1]} 22. Bf4
{[%clk 0:00:54.7]} 22... Bc4 {[%clk 0:00:47.7]} 23. Bc2 {[%clk 0:00:41.1]} 23...
b5 {[%clk 0:00:40.9]} 24. Qf2 {[%clk 0:00:15.2]} 24... Nb4 {[%clk 0:00:39.5]}
25. Bxe5 {[%clk 0:00:13.5]} 25... Qxe5 {[%clk 0:00:39.2]} 26. Bb3 {[%clk
0:00:10.1]} 26... Qxe4 {[%clk 0:00:26.9]} 27. Ng3 {[%clk 0:00:07.3]} 27... Nd3+
{[%clk 0:00:24.3]} 28. Rxd3 {[%clk 0:00:07.1]} 28... Qxd3 {[%clk 0:00:25.1]} 29.
Bxc4 {[%clk 0:00:06.8]} 29... Qxc4 {[%clk 0:00:25.3]} 30. Re1 {[%clk 0:00:05]}
30... Rd8 {[%clk 0:00:23.3]} 31. Qe2 {[%clk 0:00:04.3]} 31... Qc5 {[%clk
0:00:20.6]} 32. Qe3 {[%clk 0:00:03.9]} 32... Qc4 {[%clk 0:00:19.9]} 33. Ne4
{[%clk 0:00:03.4]} 33... Kg7 {[%clk 0:00:17.5]} 34. Qf4 {[%clk 0:00:02.5]} 34...
f5 {[%clk 0:00:09.3]} 35. Qe5+ {[%clk 0:00:02.4]} 35... Kh6 {[%clk 0:00:07.5]}
36. Qf4+ {[%clk 0:00:02.1]} 36... Kg7 {[%clk 0:00:07.7]} 37. Qe5+ {[%clk
0:00:02.6]} 37... Kh6 {[%clk 0:00:08.1]} 38. Nf6 {[%clk 0:00:03.1]} 38... Rd2+
{[%clk 0:00:07.1]} 39. Kc1 {[%clk 0:00:02.5]} 39... Qd3 {[%clk 0:00:05.8]} 40.
Qe3+ {[%clk 0:00:02.3]} 40... Qxe3 {[%clk 0:00:05.6]} 41. Rxe3 {[%clk
0:00:03.2]} 41... Kg5 {[%clk 0:00:06]} 42. Kxd2 {[%clk 0:00:02.9]} 42... Kxf6
{[%clk 0:00:05.8]} 43. Rd3 {[%clk 0:00:03.8]} 43... f4 {[%clk 0:00:06.2]} 44.
Rd6+ {[%clk 0:00:04.1]} 44... Ke5 {[%clk 0:00:07.1]} 45. Rxa6 {[%clk 0:00:04.7]}
45... g5 {[%clk 0:00:07.7]} 46. Kd3 {[%clk 0:00:05.2]} 46... g4 {[%clk
0:00:08.6]} 47. Rh6 {[%clk 0:00:05.3]} 47... f3 {[%clk 0:00:08.7]} 48. gxf3
{[%clk 0:00:05.8]} 48... gxf3 {[%clk 0:00:08.9]} 49. Ke3 {[%clk 0:00:06.7]}
49... Kd5 {[%clk 0:00:08.5]} 50. Kxf3 {[%clk 0:00:07.2]} 50... Kc4 {[%clk
0:00:09.4]} 51. Rxh7 {[%clk 0:00:06.6]} 51... Kxc3 {[%clk 0:00:10.3]} 52. Rb7
{[%clk 0:00:06.5]} 52... b4 {[%clk 0:00:10.4]} 53. Rb5 {[%clk 0:00:07.4]} 1-0

[Event "Late-Titled-Tuesday-Blitz-October-03-2023"]
[Site "Chess.com"]
[Date "2023.10.03"]
[Round "4"]
[White "GiorgianBarbosa"]
[Black "quvnoq_muxlis"]
[Result "1-0"]
[WhiteElo "2409"]
[BlackElo "2760"]
[TimeControl "180+1"]
[EndTime "14:39:06 PDT"]
[Termination "GiorgianBarbosa won by resignation"]

1. c4 {[%clk 0:02:59.9]} 1... Nf6 {[%clk 0:03:00]} 2. g3 {[%clk 0:03:00.8]} 2...
e6 {[%clk 0:03:00.4]} 3. Bg2 {[%clk 0:03:01.7]} 3... d5 {[%clk 0:03:01]} 4. Nf3
{[%clk 0:03:02.6]} 4... Nbd7 {[%clk 0:02:58.1]} 5. O-O {[%clk 0:03:03.5]} 5...
Be7 {[%clk 0:02:58.3]} 6. b3 {[%clk 0:03:02.8]} 6... O-O {[%clk 0:02:57.7]} 7.
Ba3 {[%clk 0:03:03]} 7... Bxa3 {[%clk 0:02:57.1]} 8. Nxa3 {[%clk 0:03:03.9]}
8... a5 {[%clk 0:02:57.8]} 9. Nc2 {[%clk 0:03:03.6]} 9... a4 {[%clk 0:02:57.2]}
10. d4 {[%clk 0:03:00.3]} 10... c6 {[%clk 0:02:56.6]} 11. c5 {[%clk 0:02:59.7]}
11... Ne4 {[%clk 0:02:52.3]} 12. Nd2 {[%clk 0:02:40.9]} 12... Nc3 {[%clk
0:02:31.9]} 13. Qe1 {[%clk 0:02:39.7]} 13... Qf6 {[%clk 0:02:31.7]} 14. e4
{[%clk 0:02:27.5]} 14... Qg6 {[%clk 0:02:22.2]} 15. Qe3 {[%clk 0:02:19.4]} 15...
Nb5 {[%clk 0:02:19.1]} 16. b4 {[%clk 0:02:07.2]} 16... a3 {[%clk 0:01:36]} 17.
Rab1 {[%clk 0:01:58.7]} 17... e5 {[%clk 0:01:19]} 18. exd5 {[%clk 0:01:28.5]}
18... Qxc2 {[%clk 0:01:17.2]} 19. dxc6 {[%clk 0:01:29.4]} 19... bxc6 {[%clk
0:01:17.1]} 20. Bxc6 {[%clk 0:01:27.6]} 20... Nxd4 {[%clk 0:00:55.6]} 21. Bxa8
{[%clk 0:01:23.2]} 21... Ba6 {[%clk 0:00:56.2]} 22. b5 {[%clk 0:01:14.9]} 22...
Bxb5 {[%clk 0:00:53.7]} 23. Rxb5 {[%clk 0:01:13]} 23... Nxb5 {[%clk 0:00:54.6]}
24. Bc6 {[%clk 0:01:12.9]} 24... Nd4 {[%clk 0:00:21.8]} 25. Bxd7 {[%clk
0:00:39.2]} 25... Qxc5 {[%clk 0:00:20.4]} 26. Nb3 {[%clk 0:00:34.9]} 26... Qd6
{[%clk 0:00:19.4]} 27. Ba4 {[%clk 0:00:29.3]} 27... Ra8 {[%clk 0:00:12.5]} 28.
Nxd4 {[%clk 0:00:21.2]} 28... exd4 {[%clk 0:00:12.8]} 29. Qb3 {[%clk 0:00:22.1]}
29... Rb8 {[%clk 0:00:12.8]} 30. Bb5 {[%clk 0:00:20.6]} 30... g6 {[%clk
0:00:10.4]} 31. Rb1 {[%clk 0:00:20.9]} 31... Qc5 {[%clk 0:00:08.1]} 32. Qd3
{[%clk 0:00:18.2]} 32... Kg7 {[%clk 0:00:07.3]} 33. Kg2 {[%clk 0:00:17.4]} 33...
h5 {[%clk 0:00:06.6]} 34. Rb3 {[%clk 0:00:16.2]} 34... Rb6 {[%clk 0:00:05]} 35.
Bc4 {[%clk 0:00:16]} 35... Rc6 {[%clk 0:00:04.5]} 36. Bb5 {[%clk 0:00:11.2]}
36... Rb6 {[%clk 0:00:04.9]} 37. h4 {[%clk 0:00:10.7]} 37... Rb7 {[%clk
0:00:03.6]} 38. Ba4 {[%clk 0:00:07.7]} 38... Ra7 {[%clk 0:00:02]} 39. Qb5 {[%clk
0:00:06.8]} 39... Qd6 {[%clk 0:00:01.4]} 40. Rd3 {[%clk 0:00:04.4]} 40... Re7
{[%clk 0:00:01.5]} 41. Bb3 {[%clk 0:00:04.7]} 41... Qf6 {[%clk 0:00:01.5]} 42.
Qc4 {[%clk 0:00:04.6]} 42... Re2 {[%clk 0:00:01.8]} 43. Rf3 {[%clk 0:00:05.1]}
43... Qe7 {[%clk 0:00:01.3]} 44. Rxf7+ {[%clk 0:00:05.2]} 44... Qxf7 {[%clk
0:00:01.8]} 45. Qxf7+ {[%clk 0:00:06.1]} 45... Kh6 {[%clk 0:00:02.7]} 46. Qg8
{[%clk 0:00:06.5]} 1-0

[Event "Late-Titled-Tuesday-Blitz-October-03-2023"]
[Site "Chess.com"]
[Date "2023.10.03"]
[Round "4"]
[White "geordie_derraugh"]
[Black "Quattroporte300"]
[Result "1-0"]
[WhiteElo "2512"]
[BlackElo "2349"]
[TimeControl "180+1"]
[EndTime "14:39:08 PDT"]
[Termination "geordie_derraugh won by resignation"]

1. e4 {[%clk 0:03:00.9]} 1... c5 {[%clk 0:02:58.1]} 2. c3 {[%clk 0:03:00.2]}
2... d5 {[%clk 0:02:55]} 3. exd5 {[%clk 0:03:00.2]} 3... Qxd5 {[%clk 0:02:55.8]}
4. d4 {[%clk 0:02:59.9]} 4... Nf6 {[%clk 0:02:56]} 5. Nf3 {[%clk 0:03:00.3]}
5... e6 {[%clk 0:02:51.7]} 6. Na3 {[%clk 0:03:00]} 6... a6 {[%clk 0:02:49.5]} 7.
Nc2 {[%clk 0:02:57.4]} 7... Nc6 {[%clk 0:02:49.2]} 8. Be2 {[%clk 0:02:56.8]}
8... Be7 {[%clk 0:02:49.6]} 9. O-O {[%clk 0:02:57]} 9... O-O {[%clk 0:02:50.3]}
10. Be3 {[%clk 0:02:56.7]} 10... Rd8 {[%clk 0:02:48.3]} 11. a4 {[%clk
0:02:53.5]} 11... cxd4 {[%clk 0:02:31.5]} 12. Ncxd4 {[%clk 0:02:52.7]} 12...
Nxd4 {[%clk 0:02:28.2]} 13. Bxd4 {[%clk 0:02:49.9]} 13... Bd7 {[%clk 0:02:25.2]}
14. Ne5 {[%clk 0:02:49.9]} 14... Qd6 {[%clk 0:01:59.5]} 15. Nxd7 {[%clk
0:02:35.4]} 15... Rxd7 {[%clk 0:01:55.6]} 16. Qb3 {[%clk 0:02:35.9]} 16... Rad8
{[%clk 0:01:46.6]} 17. Bb6 {[%clk 0:02:29.2]} 17... Rc8 {[%clk 0:01:39.9]} 18.
Rad1 {[%clk 0:02:27.1]} 18... Qf4 {[%clk 0:01:36.6]} 19. Be3 {[%clk 0:01:32.6]}
19... Qc7 {[%clk 0:01:33.6]} 20. Rd3 {[%clk 0:01:24.8]} 20... Nd5 {[%clk
0:01:22.1]} 21. Bd2 {[%clk 0:01:13.8]} 21... Rcd8 {[%clk 0:01:17.6]} 22. Rd1
{[%clk 0:01:02.7]} 22... Qe5 {[%clk 0:00:57.4]} 23. Bf3 {[%clk 0:00:44.7]} 23...
Bc5 {[%clk 0:00:56.6]} 24. g3 {[%clk 0:00:31]} 24... h6 {[%clk 0:00:53.9]} 25.
Bc1 {[%clk 0:00:28.6]} 25... b6 {[%clk 0:00:43.3]} 26. Kg2 {[%clk 0:00:28.6]}
26... Nf6 {[%clk 0:00:36.3]} 27. Bf4 {[%clk 0:00:25.2]} 27... Qf5 {[%clk
0:00:36.4]} 28. Rxd7 {[%clk 0:00:22.9]} 28... Rxd7 {[%clk 0:00:36.9]} 29. Rxd7
{[%clk 0:00:23]} 29... Nxd7 {[%clk 0:00:37.8]} 30. Qc4 {[%clk 0:00:21.8]} 30...
Ne5 {[%clk 0:00:26]} 31. Bxe5 {[%clk 0:00:20.4]} 31... Qxe5 {[%clk 0:00:26.9]}
32. Qxa6 {[%clk 0:00:20.8]} 32... Qe1 {[%clk 0:00:27.1]} 33. Qe2 {[%clk
0:00:21.3]} 33... Qxe2 {[%clk 0:00:21.5]} 34. Bxe2 {[%clk 0:00:21.3]} 34... Kf8
{[%clk 0:00:22.1]} 35. b4 {[%clk 0:00:20.8]} 35... Bd6 {[%clk 0:00:20.6]} 36.
Kf3 {[%clk 0:00:20.6]} 36... Ke7 {[%clk 0:00:20.4]} 37. Ke4 {[%clk 0:00:20.9]}
37... Kd7 {[%clk 0:00:17.7]} 38. Bb5+ {[%clk 0:00:19.3]} 38... Kc7 {[%clk
0:00:17.8]} 39. Be8 {[%clk 0:00:18.7]} 39... f6 {[%clk 0:00:17.4]} 40. Bf7
{[%clk 0:00:19.1]} 40... Kd7 {[%clk 0:00:17.7]} 41. f4 {[%clk 0:00:17.5]} 41...
g5 {[%clk 0:00:16.5]} 42. Bh5 {[%clk 0:00:15.7]} 42... Bf8 {[%clk 0:00:14.2]}
43. fxg5 {[%clk 0:00:14.6]} 43... hxg5 {[%clk 0:00:14.1]} 44. Be2 {[%clk
0:00:15.1]} 44... f5+ {[%clk 0:00:13.9]} 45. Kd3 {[%clk 0:00:15.7]} 45... g4
{[%clk 0:00:12.4]} 46. Kc4 {[%clk 0:00:15.5]} 46... Kc7 {[%clk 0:00:11.5]} 47.
Kb5 {[%clk 0:00:15.5]} 47... Bd6 {[%clk 0:00:10.8]} 48. Bc4 {[%clk 0:00:14.2]}
48... f4 {[%clk 0:00:06.3]} 49. gxf4 {[%clk 0:00:12]} 49... Kd7 {[%clk
0:00:05.9]} 50. Kxb6 {[%clk 0:00:10.9]} 50... Bxf4 {[%clk 0:00:06.4]} 51. Be2
{[%clk 0:00:11.5]} 51... Bxh2 {[%clk 0:00:06.6]} 52. Bxg4 {[%clk 0:00:11.6]}
52... Kd6 {[%clk 0:00:03.8]} 53. c4 {[%clk 0:00:11.5]} 53... Bg1+ {[%clk
0:00:03.9]} 54. c5+ {[%clk 0:00:11.1]} 54... Ke7 {[%clk 0:00:04]} 55. Kb7 {[%clk
0:00:10.5]} 55... e5 {[%clk 0:00:04.5]} 56. c6 {[%clk 0:00:10.2]} 1-0

[Event "Late-Titled-Tuesday-Blitz-October-03-2023"]
[Site "Chess.com"]
[Date "2023.10.03"]
[Round "4"]
[White "Anton_Demchenko"]
[Black "Aleksandar-Topalov"]
[Result "0-1"]
[WhiteElo "2897"]
[BlackElo "2414"]
[TimeControl "180+1"]
[EndTime "14:39:11 PDT"]
[Termination "Aleksandar-Topalov won by resignation"]

1. e4 {[%clk 0:03:00.9]} 1... e6 {[%clk 0:02:59.7]} 2. d3 {[%clk 0:03:00]} 2...
d5 {[%clk 0:02:56.8]} 3. Nd2 {[%clk 0:03:00.3]} 3... c5 {[%clk 0:02:56.7]} 4. g3
{[%clk 0:02:59.7]} 4... Nc6 {[%clk 0:02:56.9]} 5. Bg2 {[%clk 0:02:59.9]} 5...
Nf6 {[%clk 0:02:57]} 6. Ngf3 {[%clk 0:03:00]} 6... Be7 {[%clk 0:02:56]} 7. O-O
{[%clk 0:03:00.3]} 7... b5 {[%clk 0:02:54.8]} 8. Re1 {[%clk 0:02:59.8]} 8... O-O
{[%clk 0:02:54.3]} 9. e5 {[%clk 0:02:58.7]} 9... Nd7 {[%clk 0:02:53.9]} 10. Nf1
{[%clk 0:02:59.3]} 10... a5 {[%clk 0:02:54.1]} 11. h4 {[%clk 0:02:58.6]} 11...
b4 {[%clk 0:02:54.2]} 12. N1h2 {[%clk 0:02:57.7]} 12... Ba6 {[%clk 0:02:52.4]}
13. Bf4 {[%clk 0:02:44.8]} 13... a4 {[%clk 0:02:52.2]} 14. Ng4 {[%clk
0:02:42.1]} 14... Nd4 {[%clk 0:02:43.9]} 15. Nxd4 {[%clk 0:02:33.9]} 15... cxd4
{[%clk 0:02:43.7]} 16. Nh2 {[%clk 0:02:34.8]} 16... Rc8 {[%clk 0:02:39.4]} 17.
Rc1 {[%clk 0:02:33.2]} 17... Re8 {[%clk 0:02:35.8]} 18. b3 {[%clk 0:02:32.4]}
18... Qb6 {[%clk 0:02:29.7]} 19. Qg4 {[%clk 0:02:31.6]} 19... Rc6 {[%clk
0:02:17.3]} 20. Bxd5 {[%clk 0:02:16.1]} 20... exd5 {[%clk 0:02:17.2]} 21. Qxd7
{[%clk 0:02:08.6]} 21... Rcc8 {[%clk 0:02:15.4]} 22. Qg4 {[%clk 0:02:07.1]}
22... Rc6 {[%clk 0:01:57.3]} 23. e6 {[%clk 0:01:56.4]} 23... Rxe6 {[%clk
0:01:51.6]} 24. Qxe6 {[%clk 0:01:37.1]} 24... fxe6 {[%clk 0:01:49.4]} 25. Nf3
{[%clk 0:01:32.7]} 25... Bf6 {[%clk 0:01:41.5]} 26. Re2 {[%clk 0:01:31.8]} 26...
Qc6 {[%clk 0:01:16.3]} 27. Rce1 {[%clk 0:01:30.5]} 27... axb3 {[%clk 0:01:14.1]}
28. axb3 {[%clk 0:01:30.6]} 28... Bc8 {[%clk 0:01:11.9]} 29. Be5 {[%clk
0:01:20.7]} 29... Bd7 {[%clk 0:01:10]} 30. Nxd4 {[%clk 0:01:19.1]} 30... Qb6
{[%clk 0:01:05.4]} 31. Nf3 {[%clk 0:01:19.4]} 31... Ra8 {[%clk 0:01:01.4]} 32.
g4 {[%clk 0:01:07.4]} 32... h6 {[%clk 0:00:59.3]} 33. g5 {[%clk 0:01:07.4]}
33... hxg5 {[%clk 0:00:59.3]} 34. hxg5 {[%clk 0:01:08.3]} 34... Bxe5 {[%clk
0:00:58.4]} 35. Nxe5 {[%clk 0:01:09.2]} 35... Be8 {[%clk 0:00:56.8]} 36. Re3
{[%clk 0:01:05.8]} 36... Ra2 {[%clk 0:00:53]} 37. R1e2 {[%clk 0:01:05.2]} 37...
Qc7 {[%clk 0:00:51.1]} 38. c4 {[%clk 0:00:56]} 38... bxc3 {[%clk 0:00:41.7]} 39.
Rxa2 {[%clk 0:00:55.3]} 39... c2 {[%clk 0:00:42.1]} 40. Ra1 {[%clk 0:00:54.4]}
40... c1=Q+ {[%clk 0:00:42]} 41. Rxc1 {[%clk 0:00:55]} 41... Qxc1+ {[%clk
0:00:42.1]} 42. Kg2 {[%clk 0:00:55.9]} 42... Qc3 {[%clk 0:00:39.6]} 43. Kg3
{[%clk 0:00:52.2]} 43... Qxb3 {[%clk 0:00:39.3]} 44. d4 {[%clk 0:00:51.4]} 44...
Qb2 {[%clk 0:00:34.5]} 45. Nf3 {[%clk 0:00:51]} 45... Bh5 {[%clk 0:00:32]} 46.
Nh2 {[%clk 0:00:47.8]} 46... Qxd4 {[%clk 0:00:29.6]} 47. Rxe6 {[%clk 0:00:48.4]}
47... Bf7 {[%clk 0:00:25.5]} 48. Re3 {[%clk 0:00:46.8]} 48... Qc5 {[%clk
0:00:24.5]} 49. Nf3 {[%clk 0:00:46.5]} 49... d4 {[%clk 0:00:24.3]} 50. Re5
{[%clk 0:00:47.2]} 50... Qd6 {[%clk 0:00:23.1]} 51. Kg2 {[%clk 0:00:25.8]} 51...
Bd5 {[%clk 0:00:22.6]} 52. Re8+ {[%clk 0:00:23.9]} 52... Kf7 {[%clk 0:00:22.2]}
53. Rh8 {[%clk 0:00:06.3]} 53... Qf4 {[%clk 0:00:21.3]} 54. Rh3 {[%clk 0:00:07]}
54... Qg4+ {[%clk 0:00:19.9]} 55. Rg3 {[%clk 0:00:06]} 55... Bxf3+ {[%clk
0:00:20.1]} 56. Kg1 {[%clk 0:00:06.7]} 56... Qe4 {[%clk 0:00:20]} 57. g6+ {[%clk
0:00:06.5]} 57... Kf6 {[%clk 0:00:20.3]} 58. Kh2 {[%clk 0:00:06.5]} 0-1